Workbook

Sheet 1
A1: Школа | B1: МБОУ "СОШ № 6" НМР РТ | E1: Отд./корп | I1: Дата | J1: 2025-09-11
A3: Прием пищи | B3: Раздел меню | D3: Блюда | E3: Вес блюда, г | F3: Цена | G3: Калорийность | H3: Белки | I3: Жиры | J3: Углеводы
A4: Завтрак | B4: хлеб бел. | D4: Бутерброд с сыром и маслом сливочным | E4: 50.00 | F4: 46.12 | G4: 155 | H4: 6.27 | I4: 7.86 | J4: 14.83
B5: гор.блюдо | D5: Каша геркулесовая молочная вязкая с маслом сливочным | E5: 185.00 | G5: 206.3 | H5: 4.99 | I5: 7.4 | J5: 28.81
B6: гор.напиток | D6: Какао с молоком | E6: 200.00 | G6: 58.6 | H6: 4.08 | I6: 3.54 | J6: 2.61
B7: хлеб бел. | D7: Батон нарезной | E7: 65.00 | G7: 170.3 | H7: 4.87 | I7: 1.88 | J7: 33.41
B10: итого | E10: =SUM(E4:E9) -> 500 | F10: =F4 -> 46.12 | G10: =SUM(G4:G9) -> 590.2 | H10: =SUM(H4:H9) -> 20.21 | I10: =SUM(I4:I9) -> 20.68 | J10: =SUM(J4:J9) -> 79.66
A11: Обед | B11: 1 блюдо | D11: Борщ из свежей капусты с картофелем | E11: 210 | F11: 89.90 | G11: 245.9 | H11: 7.94 | I11: 8.91 | J11: 21.94
B12: 2 блюдо | D12: Плов из куриной грудки | E12: 200 | G12: 418.5 | H12: 15.42 | I12: 18.96 | J12: 49.93
B13: доп.гарнир | D13: Морковь свежая | E13: 50 | G13: 19.8 | H13: 0.88 | I13: 0.06 | J13: 3.84
B14: напиток | D14: Напиток из урюка | E14: 200 | G14: 68.52 | H14: 0.75 | I14: 0.06 | J14: 15.95
B15: хлеб черн. | D15: Хлеб ржаной | E15: 40 | G15: 36.64 | H15: 3.3 | I15: 0.6 | J15: 19.8
B18: итого | E18: =SUM(E11:E17) -> 700 | F18: =SUM(F11:F17) -> 89.9 | G18: =SUM(G11:G17) -> 789.36 | H18: 28.29 | I18: 28.59 | J18: 111.46
A19: Итого за день: | E19: =E10+E18 -> 1200 | F19: 136.02 | G19: 1379.56 | H19: =H10+H18 -> 48.5 | I19: =I10+I18 -> 49.27 | J19: =J10+J18 -> 191.12
A20: Итого за день: | E20: =E10+E19 -> 1700 | F20: 182.14 | G20: 1969.76 | H20: 68.71 | I20: 69.95 | J20: 270.78
